Cogmind - Beta 15 @@@ ROGUE MODE // 2025.09.28 @ 12:30:57 Player: beans Result: Destroyed by 8H-HXF(j) with Overtuned Pulse Rifle Performance ------------- Evolutions (1) 500 Regions Visited (4) 800 Robots Destroyed (19) 95 Value Destroyed (470) 470 Prototype IDs (1) 20 Alien Tech Used (0) 0 Bonus (0) 0 TOTAL SCORE: 1885 Bonus ------- None Cogmind --------- Core Integrity 0/400 Matter 251/300 Energy 100/100 System Corruption 2% Temperature Cool (13) Movement Core (50) Location -9/Recycling Parts ------- > --- POWER (1) -------- (None) > --- PROPULSION (2) --- (None) > --- UTILITY (4) ------ Scrap Engine > --- WEAPON (2) ------- (None) > --- INVENTORY (5) ---- Spread Laser Spread Laser Peak State ------------ > --- POWER ------------ (None) > --- PROPULSION ------- (None) > --- UTILITY ---------- Scrap Engine > --- WEAPON ----------- Improved Light Cannon Improved Light Cannon > --- INVENTORY -------- Spread Laser Spread Laser [Rating: 22] Favorites ----------- Power Improved Ion Engine Engine Improved Ion Engine Propulsion Light Treads Treads Light Treads Utility Scrap Engine Device Scrap Engine Weapon Spread Laser Energy Gun Spread Laser Ballistic Gun Assault Rifle Ballistic Cannon Improved Light Cannon Build | -11 -10 -9 -9 -9 ------- Run | Yrd Mat Mat Sto Rec Slots Evolved 2 | . . 2 . . Power . | . . . . . Propulsion . | . . . . . Utility 2 | . . 2 . . Weapon . | . . . . . Parts Attached 15 | 4 . . 1 10 Power 1 | . . . . 1 Engine 1 | . . . . 1 Core . | . . . . . Reactor . | . . . . . Propulsion 2 | 2 . . . . Treads 2 | 2 . . . . Leg . | . . . . . Wheel . | . . . . . Hover . | . . . . . Flight . | . . . . . Utility 1 | . . . . 1 Device 1 | . . . . 1 Storage . | . . . . . Processor . | . . . . . Hackware . | . . . . . Protection . | . . . . . Artifact . | . . . . . Weapon 11 | 2 . . 1 8 Energy Gun 4 | . . . . 4 Energy Cannon . | . . . . . Ballistic Gun 3 | 2 . . 1 . Ballistic Cannon 4 | . . . . 4 Launcher . | . . . . . Special Weapon . | . . . . . Impact Weapon . | . . . . . Slashing Weapon . | . . . . . Piercing Weapon . | . . . . . Special Melee Weapon . | . . . . . Unidentified Prototypes 1 | . . . . 1 Parts Lost 9 | . . . . 9 Power 1 | . . . . 1 Propulsion 2 | . . . . 2 Utility . | . . . . . Weapon 6 | . . . . 6 Highest Loss Streak 4 | . . . . 4 To Critical Strikes . | . . . . . Average Backups 1 | . . . 1 1 Power . | . . . . . Propulsion . | . . . . . Utility . | . . . . . Weapon 1 | . . . 1 1 Tool/Special . | . . . . . Unused Backups 1 | . . . . 1 Power . | . . . . . Propulsion . | . . . . . Utility . | . . . . . Weapon 1 | . . . . 1 Tool/Special . | . . . . . Average Slot Usage (%) 41 | . 57 44 44 40 Engine 7 | . . . . 8 Treads 13 | . 28 22 22 12 Device 1 | . . . . 1 Energy Gun 13 | . . . . 15 Ballistic Gun 5 | . 28 22 22 2 Peak Build Rating 22 | 4 4 4 5 22 Average Rating 7 | 3 4 4 4 8 On Entrance 3 | . 4 4 4 5 Naked Turns 15 | . . . . 15 Heaviest Build 13 | 3 3 3 5 13 Greatest Support 40 | 40 40 40 40 40 Greatest Overweight (x) 2 | . . . . 2 Average Overweight (x) . | . . . . . Largest Inventory Capacity 5 | 5 5 5 5 5 Average Capacity 5 | 5 5 5 5 5 Most Carried 4 | 4 . 1 1 4 Average Carried 1 | . . . 1 1 Final Capacity 5 | 5 5 5 5 5 Final Carried 2 | . . 1 1 2 Scrap Engine Consumption 4 | . . . . 4 Class Distribution -------------------- 100% | Mutant Dominant Class ---------------- Mutant | -10/Materials Mutant | -9/Materials Mutant | -9/Storage Mutant | -9/Recycling Resources | -11 -10 -9 -9 -9 ----------- Run | Yrd Mat Mat Sto Rec Matter Collected 446 | 241 . 27 82 96 Remotely . | . . . . . Salvage Created 1018 | 79 . 86 226 627 Parts 44 | 2 . 5 19 18 Haulers Intercepted . | . . . . . Recyclers Shooed 4 | 1 . 1 . 2 Parts Field Recycled . | . . . . . Retrieved Matter . | . . . . . Parts Self-Destructed . | . . . . . Prevented . | . . . . . Kills | -11 -10 -9 -9 -9 ------- Run | Yrd Mat Mat Sto Rec Combat Hostiles Destroyed 10 | . . 1 4 5 Guns 10 | . . 1 4 5 Classes Destroyed 8 | 1 . 2 2 3 Worker 1 | . . 1 . . Builder 1 | . . . . 1 Recycler 6 | 1 . . . 5 Watcher 1 | . . . 1 . Swarmer 1 | . . . . 1 Grunt 1 | . . . 1 . Sentry 7 | . . 1 3 3 Demolisher 1 | . . . . 1 Best Kill Streak 5 | 1 . 2 5 3 Combat Bots Only 4 | . . 1 4 1 Max Kills in Single Turn 1 | 1 . 1 1 1 Gunslinging . | . . . . . Exploded . | . . . . . Melee . | . . . . . Uniques/NPCs Destroyed . | . . . . . Combat | -11 -10 -9 -9 -9 -------- Run | Yrd Mat Mat Sto Rec Hostile Shots Fired 76 | . . 8 18 50 Missed 12 | . . 3 3 6 Hits 64 | . . 5 15 44 Projectile 64 | . . 5 15 44 Critical Strikes 8 | . . 1 . 7 Damage Taken 1210 | . . 72 223 915 Core 412 | . . . 32 380 Absorbed by Shields . | . . . . . Core Remaining (%) 100 | 100 100 . . . Volleys Fired 53 | 4 . 4 13 32 Largest 2 | 2 . 2 2 2 Hottest 130 | 40 . 40 43 130 Shots Fired 102 | 8 . 8 26 60 Gun 96 | 8 . 8 26 54 Cannon 6 | . . . . 6 Launcher . | . . . . . Special . | . . . . . Kinetic 60 | 8 . 8 26 18 Thermal 42 | . . . . 42 Explosive . | . . . . . Electromagnetic . | . . . . . Robot Hit Streak 14 | 2 . 2 8 14 Robot Miss Streak 6 | 1 . 2 6 5 Penetration Max . | . . . . . Secondary Targets 3 | . . . 3 . Max Gunslinging Chain 1 | . . . 1 . Shots Hit Robots 69 | 4 . 4 14 47 Core Hits 69 | 2 . 4 9 54 Critical Kills . | . . . . . Critical Parts Destroyed . | . . . . . Critical Strikes 1 | . . . . 1 Blast 1 | . . . . 1 Melee Attacks . | . . . . . Impact . | . . . . . Slashing . | . . . . . Piercing . | . . . . . Sneak Attacks . | . . . . . Combat Hostiles . | . . . . . Follow-up Attacks . | . . . . . Damage Inflicted 992 | 49 . 51 181 711 Guns 876 | 49 . 51 181 595 Cannons 106 | . . . . 106 Explosions . | . . . . . Melee . | . . . . . Ramming 10 | . . . . 10 Kinetic 491 | 49 . 51 181 210 Thermal 491 | . . . . 491 Explosive . | . . . . . Electromagnetic . | . . . . . Impact . | . . . . . Slashing . | . . . . . Piercing . | . . . . . Highest Corruption 2 | . . . . 2 Average Corruption 2 | . . . . 2 Corruption Purged . | . . . . . Corruption Blocked . | . . . . . Effects 4 | . . . . 4 Heat Flow Errors 2 | . . . . 2 Energy Discharges 1 | . . . . 1 Data Loss (major) 1 | . . . . 1 Overload Shots . | . . . . . Overflow Damage . | . . . . . Projectiles . | . . . . . Explosions . | . . . . . Melee . | . . . . . Knockbacks 1 | . . . . 1 Impact . | . . . . . Kinetic 1 | . . . . 1 Secondary . | . . . . . Self-Inflicted Damage 7 | . . . . 7 Shots . | . . . . . Rammed 2 | . . . . 2 Targets Rammed 2 | . . . . 2 Kicked . | . . . . . Crushed . | . . . . . Highest Temperature 225 | . . 1 . 225 Average Temperature 58 | . . 1 . 59 Received Heat Transfer 735 | . . 36 75 624 Effects 1 | . . . . 1 Energy Bleed 1 | . . . . 1 Siege Activations . | . . . . . Martial Activations . | . . . . . Shielding Activations . | . . . . . Robots Disrupted . | . . . . . Combat Hostiles . | . . . . . Robots Corrupted . | . . . . . Combat Hostiles . | . . . . . Parts Fried . | . . . . . Impact Corruptions . | . . . . . Robots Melted . | . . . . . Combat Hostiles . | . . . . . Parts Melted . | . . . . . Heat Transferred 555 | . . . . 555 Parts Sabotaged . | . . . . . Parts Stolen . | . . . . . Parts Stripped . | . . . . . Power Chain Reactions . | . . . . . Alert | -11 -10 -9 -9 -9 ------- Run | Yrd Mat Mat Sto Rec Maximum Alert Level . | . . . . . Low Security (%) 100 | 100 100 100 100 100 Level 1 . | . . . . . Level 2 . | . . . . . Level 3 . | . . . . . Level 4 . | . . . . . Level 5 . | . . . . . High Security . | . . . . . Max Security . | . . . . . Peak Influence 123 | 5 . 35 123 36 Initial 36 | . . . 10 36 Average 6 | 1 . 14 54 3 Influence Increases 319 | 5 . 36 143 135 Destroy 0b10 Robot/C 200 | . . 20 80 100 Destroy 0b10 Robot/NC 50 | 5 . 5 5 35 Destroy Leader 52 | . . 10 42 . Destroy Structure 2 | . . 1 1 . Lose Combat Pursuer 15 | . . . 15 . Influence Decreases 319 | 5 . 10 76 228 Entered New Map 73 | . . . 16 57 Time Decay 246 | 5 . 10 60 171 Squads Dispatched 1 | . . . 1 . Investigation . | . . . . . Extermination . | . . . . . Reinforcement 1 | . . . 1 . Assault . | . . . . . Garrison . | . . . . . Intercept . | . . . . . Searches Triggered . | . . . . . Construction Impeded . | . . . . . Haulers Reinforced . | . . . . . Active Scanning Responses . | . . . . . Cargo Convoy Interrupts . | . . . . . Stealth | -11 -10 -9 -9 -9 --------- Run | Yrd Mat Mat Sto Rec Distress Signals 1 | . . . 1 . Communications Jammed . | . . . . . Distress Signals . | . . . . . Times Spotted 24 | . . 3 8 13 Peak Tracking Total 6 | . 1 2 6 5 Tactical Retreats 4 | . . . 1 3 Traps | -11 -10 -9 -9 -9 ------- Run | Yrd Mat Mat Sto Rec Traps Triggered . | . . . . . Indirectly . | . . . . . Trap Hack Attempts . | . . . . . Triggered . | . . . . . Disarmed . | . . . . . Reprogrammed . | . . . . . Reused . | . . . . . Traps Extracted . | . . . . . Installed . | . . . . . Triggered . | . . . . . Machines | -11 -10 -9 -9 -9 ---------- Run | Yrd Mat Mat Sto Rec Machines Disabled . | . . . . . Max in Single Turn . | . . . . . Machines Repaired . | . . . . . Machines Dismantled . | . . . . . Machines Sabotaged . | . . . . . Overloaded Fab Kills . | . . . . . Hacking | -11 -10 -9 -9 -9 --------- Run | Yrd Mat Mat Sto Rec Machines Accessed 2 | . . . . 2 Terminals 1 | . . . . 1 Fabricators . | . . . . . Repair Stations . | . . . . . Recycling Units . | . . . . . Scanalyzers . | . . . . . Garrison Access . | . . . . . Total Hacks 9 | . . . . 9 Successful 7 | . . . . 7 Failed 2 | . . . . 2 Catastrophic . | . . . . . Database Lockouts . | . . . . . Manual 1 | . . . 1 . Terminals 2 | . . . . 2 Fabricators . | . . . . . Repair Stations . | . . . . . Recycling Units . | . . . . . Scanalyzers . | . . . . . Garrison Access . | . . . . . Terminal Hacks 7 | . . . . 7 Record 5 | . . . . 5 Release Object 2 | . . . . 2 Fabricator Hacks . | . . . . . Repair Station Hacks . | . . . . . Recycling Unit Hacks . | . . . . . Scanalyzer . | . . . . . Garrison Access Hacks . | . . . . . Unauthorized Hacks . | . . . . . Terminals . | . . . . . Fabricators . | . . . . . Repair Stations . | . . . . . Recycling Units . | . . . . . Scanalyzers . | . . . . . Garrison Access . | . . . . . Data Cores Recovered . | . . . . . Used . | . . . . . Hacking Detections 2 | . . . 1 1 Full Trace Events . | . . . . . Feedback Events . | . . . . . Feedback Blocked . | . . . . . Robot Schematics Acquired . | . . . . . Robots Built . | . . . . . Authchips . | . . . . . Time . | . . . . . Total Robot Build Rating . | . . . . . Part Schematics Acquired . | . . . . . Parts Built . | . . . . . Authchips . | . . . . . Time . | . . . . . Total Part Build Rating . | . . . . . Parts Repaired . | . . . . . Time . | . . . . . Parts Recycled . | . . . . . Recycled Matter . | . . . . . Retrieved Matter . | . . . . . Retrieved Components . | . . . . . Parts Scanalyzed . | . . . . . Part Schematics Acquired . | . . . . . Parts Damaged . | . . . . . Bothacking | -11 -10 -9 -9 -9 ------------ Run | Yrd Mat Mat Sto Rec Used RIF Installer . | . . . . . Robots Hacked . | . . . . . Non-combat . | . . . . . Combat . | . . . . . Robot Hacks Applied . | . . . . . Relay Couplers Released . | . . . . . Fabnet Peak Effective % . | . . . . . Robots Rewired . | . . . . . Allies Hacked . | . . . . . Hacks Repelled . | . . . . . Allies | -11 -10 -9 -9 -9 -------- Run | Yrd Mat Mat Sto Rec Total Allies . | . . . . . Largest Group . | . . . . . Highest-Rated Group . | . . . . . Highest-Rated Ally . | . . . . . Total Orders . | . . . . . Ally Attacks . | . . . . . Total Damage . | . . . . . Kills . | . . . . . Allies Corrupted . | . . . . . Allies Melted . | . . . . . Intel | -11 -10 -9 -9 -9 ------- Run | Yrd Mat Mat Sto Rec Active Infowar (turns) . | . . . . . Robot Analysis Total . | . . . . . Derelict Logs Recovered . | . . . . . Drone Launches . | . . . . . Drone Recoveries . | . . . . . Exploration | -11 -10 -9 -9 -9 ------------- Run | Yrd Mat Mat Sto Rec Turns Passed 2614 | 61 71 57 187 2238 Spaces Moved 1686 | 38 45 29 93 1481 Core 395 | 16 . . . 379 Treads 1291 | 22 45 29 93 1102 Legs . | . . . . . Wheels . | . . . . . Hover . | . . . . . Flight . | . . . . . Fastest Speed 50 | 50 160 160 160 50 Average Speed 136 | 113 160 160 160 134 Slowest Speed 160 | 160 160 160 160 160 Overloaded Moves . | . . . . . Propulsion Burnouts . | . . . . . Robots Hopped . | . . . . . Potential Cave-ins . | . . . . . Cave-ins Triggered . | . . . . . Exploration Rate (%) 30 | 3 24 7 20 99 Regions Visited 4 Branch Regions 2 Pre-discovered Areas . | . . . . . Known Exits Taken . | . . . . . Unknown Exits Taken 4 | 1 1 1 1 . Scrap Searched . | . . . . . Spaces Dug . | . . . . . Terrain Destroyed . | . . . . . Melee . | . . . . . Projectile . | . . . . . AOE . | . . . . . Terrain Rammed 1 | . . . . 1 Walls Destroyed . | . . . . . Machines Disabled . | . . . . . Actions | -11 -10 -9 -9 -9 --------- Run | Yrd Mat Mat Sto Rec Total 1904 | 49 44 33 106 1672 Wait 131 | . . . . 131 Move 1682 | 37 44 28 92 1481 Hop . | . . . . . Pick Up 16 | 4 . 1 . 11 Fast Attach . | . . . . . Attach 13 | 4 . . . 9 Detach . | . . . . . Swap 2 | . . . 1 1 Drop 4 | . . . . 4 Fire 53 | 4 . 4 13 32 Melee . | . . . . . Ram 2 | . . . . 2 Kick . | . . . . . Crush 1 | . . . . 1 Escape Stasis . | . . . . . Rewire . | . . . . . Trap . | . . . . . Miscellaneous . | . . . . . Route ------- -11/Scrapyard -10/Materials -9/Materials -9/Storage -9/Recycling (discovered 1 exit: [*Fac]) History --------- Turn | Location | Event 10 | -11/Scrapyard | Discovered new exit (range 15) 62 | -11/Scrapyard | Entered Materials 118 | -10/Materials | Discovered new exit (range 8) 133 | -10/Materials | Entered another Materials area 133 | -9/Materials | Evolved 2 slots: Utility x2 154 | -9/Materials | Discovered new exit (range 15) 190 | -9/Materials | Entered Storage 318 | -9/Storage | Build established: Mutant 368 | -9/Storage | Used back door to open Recycling access 368 | -9/Storage | Discovered new exit (range 5) 377 | -9/Storage | Entered Recycling 1029 | -9/Recycling | Discovered new exit (range 15) 1753 | -9/Recycling | Scanned before Scraplab entrance 2224 | -9/Recycling | Entered Scraplab 2229 | -9/Recycling | Angered Scraplab inhabitants 2230 | -9/Recycling | Found Prototype Device 2254 | -9/Recycling | Core integrity fell below 50% 2271 | -9/Recycling | Identified Scrap Engine 2287 | -9/Recycling | Lost 4 parts (1p1n2w) 2579 | -9/Recycling | Core integrity fell below 20% 2615 | -9/Recycling | Destroyed by 8H-HXF(j) with Overtuned Pulse Rifle Last Messages --------------- Identified Scrap Engine. System corrupted: Heat flow error (+124). Scrap Engine consumes Com. Wheel. Scrap Engine consumes Broken Com. Wheel. Scrap Engine consumes Com. Wheel. System corrupted: Energy discharge (-37). System corrupted: Heat flow error (+183). Acquired 10 matter. System corrupted: Substantial component data lost. Acquired Imp. Light Cannon. 1D-BK4(j) Ovr. Titanium Leg blasted off. Imp. Light Cannon destroyed. Critical hit (Burn: +50). Dropped Imp. Light Cannon. Acquired Imp. Light Cannon. 1D-BK4(j) knocked back. Imp. Light Cannon destroyed. Critical hit (Burn: +50). Imp. Light Cannon destroyed. Map ----- +----------------------------------------------------+ | | | | | ????????????????????????############?????????????? | | ????????????????????????#"""""""#" #?????????????? | | ????????????????????????# " X " ## #?????????????? | | ??????????????????####### #?????????????? | | ?????????????????## + #?????????????? | | ?????????????????# ##### #?????????????? | | ?????????????????## #???# ""#?????????????? | | ??????????????????# #???#"& "& X ""#?????????????? | | ??????????????????#%#???#"""""""" #?????????????? | | ???????????????#### ################?????????????? | | ???????????????# #?????????????????????????? | | ?????######????# #?????????????????????????? | | ###### ## ####?# #?????????????????????????? | | # #?# #?????????????????????????? | | # #?####+####?????????????????????????? | | # ####?#%#????###############?????????? | | # ##%###=#????# #?????????? | | # / ] #????# #?????????? | | # ########????# #?????????? | | # #??????????## #?????????? | | # #??????##### #?????????? | | # #??###?# ## #?????????? | | #######+#########T### ;#####+#########?????????? | | @ #????????????? | | %j < #????????????? | | j % #????????????? | | ##########+#########/#########+######????????????? | | ??????# #?# #???? ????????????????? | | ??????#"""" #?#! ! #??# ??????????????? | | ??????#"""" #?# #??# #?????????????? | | ??????#"""" ### #??# #?????????????? | | ??????#"""" ""# ! !#??# #?????????????? | | ??????# T"# ! #??# #?????????????? | | ??????# ""# ! ! #??# #?????????????? | | ??????# ### ! !#??# #?????????????? | | ??????# #?#!! #??# #?????????????? | | ??????##########?# #??# ########?????????????? | | ?????????????????# #??##?????????????????????? | | ?????????????????# ! #?????????????????????????? | | ?????????????????# ! #?????????????????????????? | | ?????????????????#! #?????????????????????????? | | ?????????????????#! #?????????????????????????? | | ?????????????????#######?????????????????????????? | | ?????????????????????????????????????????????????? | | ?#####???????????????????????????????????????????? | | ##"T"###?????????????????????????????????????????? | | " #?????????????????????????????????????????? | | "" #?????????????????????????????????????????? | +----------------------------------------------------+ Best States ------------- Heat Dissipation 28 Energy Generation 12 Energy Capacity 265 Matter Stores 300 Matter Capacity 300 Sight Range 16 Terrain Scan Density 10 Evasion (%) 50 Recoil Reduction 2 Item Schematics ----------------- None Robot Schematics ------------------ None Fabricated ------------ Nothing Repaired ---------- Nothing Alien Tech Used ----------------- None Achievements -------------- None Challenges ------------ None Game ------ Seed ParticlePersonalMeganuke Manual? 0 Play Time 00:20:25 Cumulative 164.1 hours Start 2025.09.28 @ 10:58:13 End 2025.09.28 @ 12:30:57 Sessions 1 Manual Loads 0 Difficulty Rogue Special Mode None Game No. 525 Rogue 524 Adventurer 1 Explorer 0 Win Type - Total 0 Types 0/0/0/0/0/0/0/0/0/0 Lore% 58 Gallery% 55 Achievement% 43 Wizard Run 0 Options --------- Layout 1 ASCII 0 Keyboard 0 Movement Mouse Keybinds 0 Fullscreen 2 Font 24/Smallcaps Map View 50x35 Zoom Use 0% Tactical HUD 0 Map Filters NONE Filters NONE Steam 1 RUN: 1715d788-6645-44cb-a5e6-b55da05b388f